[Event "Titled Tuesday Blitz August 16 Early 2022"]
[White "Santeramo, Alessia Carmen"]
[Black "Delorme, Axel"]
[WhiteFideId "850810"]
[BlackFideId "632023"]
[WhiteElo "2041"]
[BlackElo "2474"]
[Result "0-1"]
[Round "08"]
[TimeControl "180+2"]
[Date "2022.08.18"]
[WhiteClock "0:00:00"]
[BlackClock "0:00:00"]

1. e4 {[%clk 0:00:00]}  c6 {[%clk 0:00:00]} 2. d4 {[%clk 0:00:00]}  d5 {[%clk 0:00:00]} 3. e5 {[%clk 0:00:00]}  c5 {[%clk 0:00:00]} 4. c3 {[%clk 0:00:00]}  Nc6 {[%clk 0:00:00]} 5. Ne2 {[%clk 0:00:00]}  Bg4 {[%clk 0:00:00]} 6. h3 {[%clk 0:00:00]}  Bxe2 {[%clk 0:00:00]} 7. Bxe2 {[%clk 0:00:00]}  Qb6 {[%clk 0:00:00]} 8. dxc5 {[%clk 0:00:00]}  Qxc5 {[%clk 0:00:00]} 9. e6 {[%clk 0:00:00]}  fxe6 {[%clk 0:00:00]} 10. O-O {[%clk 0:00:00]}  Nf6 {[%clk 0:00:00]} 11. Be3 {[%clk 0:00:00]}  Qd6 {[%clk 0:00:00]} 12. Na3 {[%clk 0:00:00]}  e5 {[%clk 0:00:00]} 13. Qb3 {[%clk 0:00:00]}  Qd7 {[%clk 0:00:00]} 14. Rad1 {[%clk 0:00:00]}  e6 {[%clk 0:00:00]} 15. Bg5 {[%clk 0:00:00]}  Be7 {[%clk 0:00:00]} 16. Bxf6 {[%clk 0:00:00]}  Bxf6 {[%clk 0:00:00]} 17. Bg4 {[%clk 0:00:00]}  Rd8 {[%clk 0:00:00]} 18. c4 {[%clk 0:00:00]}  Nd4 {[%clk 0:00:00]} 19. Qe3 {[%clk 0:00:00]}  h5 {[%clk 0:00:00]} 20. Bf3 {[%clk 0:00:00]}  Nxf3+ {[%clk 0:00:00]} 21. Qxf3 {[%clk 0:00:00]}  e4 {[%clk 0:00:00]} 22. Qg3 {[%clk 0:00:00]}  Kf7 {[%clk 0:00:00]} 23. cxd5 {[%clk 0:00:00]}  exd5 {[%clk 0:00:00]} 24. b3 {[%clk 0:00:00]}  Qd6 {[%clk 0:00:00]} 25. Qe3 {[%clk 0:00:00]}  Qxa3 {[%clk 0:00:00]} 26. Rc1 {[%clk 0:00:00]}  Rd7 {[%clk 0:00:00]} 27. Qf4 {[%clk 0:00:00]}  Qd6 {[%clk 0:00:00]} 28. Qf5 {[%clk 0:00:00]}  Qe6 {[%clk 0:00:00]} 29. Qf4 {[%clk 0:00:00]}  Qe5 {[%clk 0:00:00]} 30. Qe3 {[%clk 0:00:00]}  b6 {[%clk 0:00:00]} 31. Qe2 {[%clk 0:00:00]}  d4 {[%clk 0:00:00]} 32. Qc4+ {[%clk 0:00:00]}  Qd5 {[%clk 0:00:00]} 33. Qa4 {[%clk 0:00:00]}  Re8 {[%clk 0:00:00]} 34. Rfd1 {[%clk 0:00:00]}  Rde7 {[%clk 0:00:00]} 35. Rc4 {[%clk 0:00:00]}  d3 {[%clk 0:00:00]} 36. Qb4 {[%clk 0:00:00]}  e3 {[%clk 0:00:00]} 37. fxe3 {[%clk 0:00:00]}  Rxe3 {[%clk 0:00:00]} 38. Qa4 {[%clk 0:00:00]}  Re1+ {[%clk 0:00:00]} 39. Rxe1 {[%clk 0:00:00]}  Rxe1+ {[%clk 0:00:00]} 40. Kh2 {[%clk 0:00:00]}  Be5+ {[%clk 0:00:00]} 41. Rf4+ {[%clk 0:00:00]}  Bxf4+ {[%clk 0:00:00]} 42. Qxf4+ {[%clk 0:00:00]}  Kg8 {[%clk 0:00:00]} 43. Qb8+ {[%clk 0:00:00]}  Kh7 {[%clk 0:00:00]} 44. Qg3 {[%clk 0:00:00]}  Qe5 {[%clk 0:00:00]} 45. Qxe5 {[%clk 0:00:00]}  Rxe5 {[%clk 0:00:00]} 0-1


[Site "https://www.chess.com"]

[Event "Titled Tuesday Blitz August 16 Early 2022"]
[White "Santos Ruiz, Miguel"]
[Black "Gubajdullin, Alexei"]
[WhiteFideId "22291482"]
[BlackFideId "4141202"]
[WhiteElo "2478"]
[BlackElo "2214"]
[Result "1/2-1/2"]
[Round "08"]
[TimeControl "180+1"]
[Date "2022.08.16"]
[WhiteClock "0:00:12"]
[BlackClock "0:00:18"]

1. e4 {[%clk 0:03:00]}  c6 {[%clk 0:02:59]} 2. d4 {[%clk 0:03:00]}  d5 {[%clk 0:02:58]} 3. exd5 {[%clk 0:03:01]}  cxd5 {[%clk 0:02:58]} 4. Nf3 {[%clk 0:03:02]}  Nf6 {[%clk 0:02:56]} 5. c3 {[%clk 0:03:02]}  g6 {[%clk 0:02:55]} 6. Bd3 {[%clk 0:02:58]}  Bg7 {[%clk 0:02:55]} 7. O-O {[%clk 0:02:58]}  O-O {[%clk 0:02:55]} 8. Bf4 {[%clk 0:02:58]}  Nc6 {[%clk 0:02:54]} 9. Nbd2 {[%clk 0:02:57]}  Bf5 {[%clk 0:02:54]} 10. Bxf5 {[%clk 0:02:57]}  gxf5 {[%clk 0:02:54]} 11. Re1 {[%clk 0:02:56]}  Ne4 {[%clk 0:02:54]} 12. g3 {[%clk 0:02:51]}  f6 {[%clk 0:02:53]} 13. Qb3 {[%clk 0:02:33]}  e5 {[%clk 0:02:51]} 14. Be3 {[%clk 0:02:33]}  Qd7 {[%clk 0:02:38]} 15. Rad1 {[%clk 0:02:25]}  f4 {[%clk 0:02:35]} 16. Nxe4 {[%clk 0:02:16]}  fxe3 {[%clk 0:02:23]} 17. Rxe3 {[%clk 0:02:16]}  Na5 {[%clk 0:01:54]} 18. Nc5 {[%clk 0:02:16]}  Qc6 {[%clk 0:01:49]} 19. Qc2 {[%clk 0:02:03]}  b6 {[%clk 0:01:43]} 20. Nb3 {[%clk 0:01:51]}  Nc4 {[%clk 0:01:43]} 21. Re2 {[%clk 0:01:50]}  e4 {[%clk 0:01:42]} 22. Nh4 {[%clk 0:01:50]}  f5 {[%clk 0:01:42]} 23. Ng2 {[%clk 0:01:31]}  Bh6 {[%clk 0:01:39]} 24. Kh1 {[%clk 0:01:19]}  Kh8 {[%clk 0:01:36]} 25. Rg1 {[%clk 0:01:17]}  Qg6 {[%clk 0:01:30]} 26. Nc1 {[%clk 0:01:06]}  Qh5 {[%clk 0:01:23]} 27. Ree1 {[%clk 0:01:04]}  f4 {[%clk 0:01:18]} 28. gxf4 {[%clk 0:00:41]}  Bxf4 {[%clk 0:01:14]} 29. Nxf4 {[%clk 0:00:41]}  Rxf4 {[%clk 0:01:13]} 30. Rg2 {[%clk 0:00:32]}  Raf8 {[%clk 0:01:00]} 31. Reg1 {[%clk 0:00:31]}  e3 {[%clk 0:00:57]} 32. Nd3 {[%clk 0:00:25]}  exf2 {[%clk 0:00:52]} 33. Nxf2 {[%clk 0:00:05]}  Ne3 {[%clk 0:00:46]} 34. Qd2 {[%clk 0:00:03]}  Nxg2 {[%clk 0:00:45]} 35. Rxg2 {[%clk 0:00:04]}  Qf3 {[%clk 0:00:42]} 36. Kg1 {[%clk 0:00:05]}  Re4 {[%clk 0:00:34]} 37. h3 {[%clk 0:00:03]}  Re2 {[%clk 0:00:30]} 38. Qg5 {[%clk 0:00:02]}  Re1+ {[%clk 0:00:28]} 39. Kh2 {[%clk 0:00:02]}  Qf4+ {[%clk 0:00:26]} 40. Qxf4 {[%clk 0:00:03]}  Rxf4 {[%clk 0:00:26]} 41. Nd3 {[%clk 0:00:03]}  Rfe4 {[%clk 0:00:17]} 42. Nxe1 {[%clk 0:00:04]}  Rxe1 {[%clk 0:00:17]} 43. Kg3 {[%clk 0:00:04]}  Kg7 {[%clk 0:00:15]} 44. Kf2+ {[%clk 0:00:05]}  Kf6 {[%clk 0:00:15]} 45. Kxe1 {[%clk 0:00:06]}  Kf5 {[%clk 0:00:15]} 46. Kf2 {[%clk 0:00:06]}  Kf4 {[%clk 0:00:15]} 47. Rg3 {[%clk 0:00:06]}  Ke4 {[%clk 0:00:15]} 48. Re3+ {[%clk 0:00:07]}  Kf4 {[%clk 0:00:15]} 49. Re5 {[%clk 0:00:08]}  h5 {[%clk 0:00:13]} 50. Rxh5 {[%clk 0:00:08]}  b5 {[%clk 0:00:12]} 51. Rxd5 {[%clk 0:00:07]}  b4 {[%clk 0:00:13]} 52. cxb4 {[%clk 0:00:08]}  a5 {[%clk 0:00:14]} 53. Rxa5 {[%clk 0:00:08]}  Ke4 {[%clk 0:00:15]} 54. Rc5 {[%clk 0:00:09]}  Kxd4 {[%clk 0:00:16]} 55. a4 {[%clk 0:00:10]}  Ke4 {[%clk 0:00:16]} 56. a5 {[%clk 0:00:11]}  Kf4 {[%clk 0:00:17]} 57. a6 {[%clk 0:00:11]}  Ke4 {[%clk 0:00:18]} 58. a7 {[%clk 0:00:12]}  Kf4 {[%clk 0:00:18]} 59. a8=Q {[%clk 0:00:12]} 1/2-1/2


[Site "https://www.chess.com"]

[Event "Titled Tuesday Blitz August 16 Early 2022"]
[White "Senthil Maran K"]
[Black "Shimanov, Aleksandr"]
[WhiteFideId "25035681"]
[BlackFideId "4198603"]
[WhiteElo "2124"]
[BlackElo "2605"]
[Result "0-1"]
[Round "08"]
[TimeControl "180+1"]
[Date "2022.08.16"]
[WhiteClock "0:00:04"]
[BlackClock "0:00:09"]

1. g3 {[%clk 0:03:00]}  g6 {[%clk 0:02:21]} 2. Nf3 {[%clk 0:02:58]}  Bg7 {[%clk 0:02:22]} 3. d4 {[%clk 0:02:57]}  Nf6 {[%clk 0:02:21]} 4. Bg2 {[%clk 0:02:58]}  O-O {[%clk 0:02:19]} 5. c4 {[%clk 0:02:58]}  d6 {[%clk 0:02:19]} 6. O-O {[%clk 0:02:58]}  Nc6 {[%clk 0:02:19]} 7. Nc3 {[%clk 0:02:58]}  e5 {[%clk 0:02:18]} 8. dxe5 {[%clk 0:02:54]}  dxe5 {[%clk 0:02:19]} 9. Bg5 {[%clk 0:02:53]}  h6 {[%clk 0:02:19]} 10. Qxd8 {[%clk 0:02:43]}  Rxd8 {[%clk 0:02:20]} 11. Bxf6 {[%clk 0:02:43]}  Bxf6 {[%clk 0:02:16]} 12. Nd5 {[%clk 0:02:43]}  Kg7 {[%clk 0:02:17]} 13. Nd2 {[%clk 0:02:34]}  e4 {[%clk 0:01:26]} 14. Nxe4 {[%clk 0:02:06]}  Bxb2 {[%clk 0:01:25]} 15. Rab1 {[%clk 0:02:06]}  Ba3 {[%clk 0:01:16]} 16. Nxc7 {[%clk 0:01:44]}  Rb8 {[%clk 0:01:16]} 17. Nb5 {[%clk 0:01:41]}  Be7 {[%clk 0:01:15]} 18. Rbd1 {[%clk 0:01:32]}  Be6 {[%clk 0:01:13]} 19. Nbd6 {[%clk 0:00:50]}  Na5 {[%clk 0:01:11]} 20. c5 {[%clk 0:00:44]}  b6 {[%clk 0:01:11]} 21. a4 {[%clk 0:00:14]}  bxc5 {[%clk 0:01:10]} 22. Nb5 {[%clk 0:00:13]}  Bb3 {[%clk 0:00:45]} 23. Rxd8 {[%clk 0:00:12]}  Rxd8 {[%clk 0:00:46]} 24. Nxa7 {[%clk 0:00:12]}  Bxa4 {[%clk 0:00:38]} 25. Ra1 {[%clk 0:00:12]}  Rd1+ {[%clk 0:00:34]} 26. Rxd1 {[%clk 0:00:10]}  Bxd1 {[%clk 0:00:35]} 27. Nc3 {[%clk 0:00:10]}  Bc2 {[%clk 0:00:30]} 28. Nab5 {[%clk 0:00:06]}  c4 {[%clk 0:00:22]} 29. Bd5 {[%clk 0:00:05]}  Bb3 {[%clk 0:00:22]} 30. f4 {[%clk 0:00:05]}  Bc5+ {[%clk 0:00:21]} 31. Kg2 {[%clk 0:00:06]}  Bb4 {[%clk 0:00:18]} 32. e4 {[%clk 0:00:06]}  Bc2 {[%clk 0:00:16]} 33. e5 {[%clk 0:00:05]}  Bd3 {[%clk 0:00:16]} 34. Kf3 {[%clk 0:00:06]}  Nb3 {[%clk 0:00:16]} 35. Be4 {[%clk 0:00:05]}  Nd2+ {[%clk 0:00:16]} 36. Ke3 {[%clk 0:00:03]}  Nxe4 {[%clk 0:00:16]} 37. Nxe4 {[%clk 0:00:03]}  Bc2 {[%clk 0:00:10]} 38. Nbc3 {[%clk 0:00:04]}  Bd3 {[%clk 0:00:09]} 39. Kd4 {[%clk 0:00:04]}  Ba5 {[%clk 0:00:10]} 40. Nd6 {[%clk 0:00:04]}  Bb6+ {[%clk 0:00:10]} 41. Kd5 {[%clk 0:00:04]}  Bg1 {[%clk 0:00:11]} 42. Nxc4 {[%clk 0:00:04]}  Bxh2 {[%clk 0:00:09]} 43. e6 {[%clk 0:00:03]}  fxe6+ {[%clk 0:00:09]} 44. Kd4 {[%clk 0:00:03]}  Bxc4 {[%clk 0:00:09]} 45. Kxc4 {[%clk 0:00:04]}  Bxg3 {[%clk 0:00:09]} 46. Ne2 {[%clk 0:00:05]}  Bf2 {[%clk 0:00:08]} 47. Kd3 {[%clk 0:00:05]}  Kf6 {[%clk 0:00:08]} 48. Ke4 {[%clk 0:00:06]}  Bb6 {[%clk 0:00:08]} 49. Kf3 {[%clk 0:00:06]}  Bc7 {[%clk 0:00:08]} 50. Kg4 {[%clk 0:00:05]}  e5 {[%clk 0:00:08]} 51. fxe5+ {[%clk 0:00:06]}  Bxe5 {[%clk 0:00:09]} 52. Ng1 {[%clk 0:00:06]}  h5+ {[%clk 0:00:09]} 53. Kh4 {[%clk 0:00:06]}  Bd4 {[%clk 0:00:09]} 54. Nh3 {[%clk 0:00:05]}  Be3 {[%clk 0:00:09]} 55. Kg3 {[%clk 0:00:05]}  Kf5 {[%clk 0:00:09]} 56. Kf3 {[%clk 0:00:05]}  Bd4 {[%clk 0:00:10]} 57. Ke2 {[%clk 0:00:04]}  Kg4 {[%clk 0:00:09]} 0-1


[Site "https://www.chess.com"]

[Event "Titled Tuesday Blitz August 16 Early 2022"]
[White "Sharapov, Evgeny"]
[Black "Melikyan, Gnel"]
[WhiteFideId "14103133"]
[BlackFideId "54109990"]
[WhiteElo "2375"]
[BlackElo "2238"]
[Result "1/2-1/2"]
[Round "08"]
[TimeControl "180+2"]
[Date "2022.08.18"]
[WhiteClock "0:00:00"]
[BlackClock "0:00:00"]

1. e4 {[%clk 0:00:00]}  e5 {[%clk 0:00:00]} 2. Nf3 {[%clk 0:00:00]}  Nc6 {[%clk 0:00:00]} 3. Nc3 {[%clk 0:00:00]}  Nf6 {[%clk 0:00:00]} 4. Bb5 {[%clk 0:00:00]}  Bb4 {[%clk 0:00:00]} 5. O-O {[%clk 0:00:00]}  O-O {[%clk 0:00:00]} 6. Bxc6 {[%clk 0:00:00]}  dxc6 {[%clk 0:00:00]} 7. Nxe5 {[%clk 0:00:00]}  Bxc3 {[%clk 0:00:00]} 8. dxc3 {[%clk 0:00:00]}  Qxd1 {[%clk 0:00:00]} 9. Rxd1 {[%clk 0:00:00]}  Nxe4 {[%clk 0:00:00]} 10. f3 {[%clk 0:00:00]}  Nd6 {[%clk 0:00:00]} 11. Bf4 {[%clk 0:00:00]}  Bf5 {[%clk 0:00:00]} 12. Nd3 {[%clk 0:00:00]}  Rfe8 {[%clk 0:00:00]} 13. Bxd6 {[%clk 0:00:00]}  cxd6 {[%clk 0:00:00]} 14. Re1 {[%clk 0:00:00]}  Bxd3 {[%clk 0:00:00]} 15. cxd3 {[%clk 0:00:00]}  Rxe1+ {[%clk 0:00:00]} 16. Rxe1 {[%clk 0:00:00]}  Kf8 {[%clk 0:00:00]} 17. Kf2 {[%clk 0:00:00]}  a5 {[%clk 0:00:00]} 18. d4 {[%clk 0:00:00]}  a4 {[%clk 0:00:00]} 19. a3 {[%clk 0:00:00]}  Ra5 {[%clk 0:00:00]} 20. Re2 {[%clk 0:00:00]}  h5 {[%clk 0:00:00]} 21. Ke3 {[%clk 0:00:00]}  Ke7 {[%clk 0:00:00]} 22. Kd3+ {[%clk 0:00:00]}  Kd7 {[%clk 0:00:00]} 23. c4 {[%clk 0:00:00]}  b5 {[%clk 0:00:00]} 24. c5 {[%clk 0:00:00]}  Ra8 {[%clk 0:00:00]} 25. Kc3 {[%clk 0:00:00]}  f6 {[%clk 0:00:00]} 26. f4 {[%clk 0:00:00]}  g6 {[%clk 0:00:00]} 27. g3 {[%clk 0:00:00]}  d5 {[%clk 0:00:00]} 28. h3 {[%clk 0:00:00]}  Ra7 {[%clk 0:00:00]} 29. Re3 {[%clk 0:00:00]}  Ra8 {[%clk 0:00:00]} 30. Re2 {[%clk 0:00:00]}  Ra7 {[%clk 0:00:00]} 31. Re3 {[%clk 0:00:00]}  Ra8 {[%clk 0:00:00]} 32. Re2 {[%clk 0:00:00]} 1/2-1/2


[Site "https://www.chess.com"]

[Event "Titled Tuesday Blitz August 16 Early 2022"]
[White "Shashikant, Kutwal"]
[Black "Lauridsen, Jesper Morch"]
[WhiteFideId "5006520"]
[BlackFideId "1401890"]
[WhiteElo "2321"]
[BlackElo "2221"]
[Result "0-1"]
[Round "08"]
[TimeControl "180+2"]
[Date "2022.08.18"]
[WhiteClock "0:00:00"]
[BlackClock "0:00:00"]

1. e4 {[%clk 0:00:00]}  c5 {[%clk 0:00:00]} 2. Nf3 {[%clk 0:00:00]}  Nc6 {[%clk 0:00:00]} 3. d4 {[%clk 0:00:00]}  cxd4 {[%clk 0:00:00]} 4. Nxd4 {[%clk 0:00:00]}  g6 {[%clk 0:00:00]} 5. c4 {[%clk 0:00:00]}  Bg7 {[%clk 0:00:00]} 6. Be3 {[%clk 0:00:00]}  Nf6 {[%clk 0:00:00]} 7. Nc3 {[%clk 0:00:00]}  O-O {[%clk 0:00:00]} 8. Be2 {[%clk 0:00:00]}  d6 {[%clk 0:00:00]} 9. O-O {[%clk 0:00:00]}  Bd7 {[%clk 0:00:00]} 10. f3 {[%clk 0:00:00]}  Nxd4 {[%clk 0:00:00]} 11. Bxd4 {[%clk 0:00:00]}  a5 {[%clk 0:00:00]} 12. b3 {[%clk 0:00:00]}  Bc6 {[%clk 0:00:00]} 13. Qd2 {[%clk 0:00:00]}  Nd7 {[%clk 0:00:00]} 14. Be3 {[%clk 0:00:00]}  Nc5 {[%clk 0:00:00]} 15. Rab1 {[%clk 0:00:00]}  Qb6 {[%clk 0:00:00]} 16. Rfc1 {[%clk 0:00:00]}  Rfc8 {[%clk 0:00:00]} 17. Rc2 {[%clk 0:00:00]}  h5 {[%clk 0:00:00]} 18. Bf1 {[%clk 0:00:00]}  Kh7 {[%clk 0:00:00]} 19. Qc1 {[%clk 0:00:00]}  Qd8 {[%clk 0:00:00]} 20. a3 {[%clk 0:00:00]}  Qh8 {[%clk 0:00:00]} 21. Nd5 {[%clk 0:00:00]}  Bxd5 {[%clk 0:00:00]} 22. exd5 {[%clk 0:00:00]}  a4 {[%clk 0:00:00]} 23. b4 {[%clk 0:00:00]}  Nb3 {[%clk 0:00:00]} 24. Qe1 {[%clk 0:00:00]}  Bd4 {[%clk 0:00:00]} 25. Kh1 {[%clk 0:00:00]}  Bxe3 {[%clk 0:00:00]} 26. Qxe3 {[%clk 0:00:00]}  Nd4 {[%clk 0:00:00]} 27. Rcc1 {[%clk 0:00:00]}  Nf5 {[%clk 0:00:00]} 28. Qf2 {[%clk 0:00:00]}  Qf6 {[%clk 0:00:00]} 29. Bd3 {[%clk 0:00:00]}  Nd4 {[%clk 0:00:00]} 30. Re1 {[%clk 0:00:00]}  e5 {[%clk 0:00:00]} 31. dxe6 {[%clk 0:00:00]}  Nxe6 {[%clk 0:00:00]} 32. Qb6 {[%clk 0:00:00]}  h4 {[%clk 0:00:00]} 33. h3 {[%clk 0:00:00]}  Nf4 {[%clk 0:00:00]} 34. Bf1 {[%clk 0:00:00]}  Nh5 {[%clk 0:00:00]} 35. Rbd1 {[%clk 0:00:00]}  Ng3+ {[%clk 0:00:00]} 36. Kg1 {[%clk 0:00:00]}  Nxf1 {[%clk 0:00:00]} 37. Rxf1 {[%clk 0:00:00]}  Rxc4 {[%clk 0:00:00]} 38. Qxb7 {[%clk 0:00:00]}  Rac8 {[%clk 0:00:00]} 39. Qa6 {[%clk 0:00:00]}  Rc2 {[%clk 0:00:00]} 40. Qa7 {[%clk 0:00:00]}  Qg5 {[%clk 0:00:00]} 41. Rf2 {[%clk 0:00:00]}  Rxf2 {[%clk 0:00:00]} 42. Qxf2 {[%clk 0:00:00]}  Rc1 {[%clk 0:00:00]} 43. Qe2 {[%clk 0:00:00]}  Rxd1+ {[%clk 0:00:00]} 44. Qxd1 {[%clk 0:00:00]}  Qe3+ {[%clk 0:00:00]} 45. Kh1 {[%clk 0:00:00]}  Qxa3 {[%clk 0:00:00]} 46. Qe1 {[%clk 0:00:00]}  Qb3 {[%clk 0:00:00]} 47. Qxh4+ {[%clk 0:00:00]}  Kg8 {[%clk 0:00:00]} 48. Qd8+ {[%clk 0:00:00]}  Kg7 {[%clk 0:00:00]} 49. Qxd6 {[%clk 0:00:00]}  a3 {[%clk 0:00:00]} 50. Qd4+ {[%clk 0:00:00]}  Kh7 {[%clk 0:00:00]} 51. Qh4+ {[%clk 0:00:00]}  Kg7 {[%clk 0:00:00]} 52. Qd4+ {[%clk 0:00:00]}  f6 {[%clk 0:00:00]} 53. Qd7+ {[%clk 0:00:00]}  Qf7 {[%clk 0:00:00]} 54. Qa4 {[%clk 0:00:00]}  a2 {[%clk 0:00:00]} 55. b5 {[%clk 0:00:00]}  Qe6 {[%clk 0:00:00]} 56. Qa7+ {[%clk 0:00:00]}  Kh6 {[%clk 0:00:00]} 57. Kh2 {[%clk 0:00:00]}  Qe5+ {[%clk 0:00:00]} 58. g3 {[%clk 0:00:00]}  Qe2+ {[%clk 0:00:00]} 59. Kh1 {[%clk 0:00:00]}  Qd1+ {[%clk 0:00:00]} 60. Kg2 {[%clk 0:00:00]}  Qc2+ {[%clk 0:00:00]} 61. Kh1 {[%clk 0:00:00]}  Qb1+ {[%clk 0:00:00]} 62. Kg2 {[%clk 0:00:00]}  Qb2+ {[%clk 0:00:00]} 63. Kh1 {[%clk 0:00:00]}  a1=Q+ {[%clk 0:00:00]} 0-1


[Site "https://www.chess.com"]

[Event "Titled Tuesday Blitz August 16 Early 2022"]
[White "Skawinski, Arkadiusz"]
[Black "Harsh Suresh"]
[WhiteFideId "1126415"]
[BlackFideId "45018464"]
[WhiteElo "2149"]
[BlackElo "2070"]
[Result "1-0"]
[Round "08"]
[TimeControl "180+2"]
[Date "2022.08.18"]
[WhiteClock "0:00:00"]
[BlackClock "0:00:00"]

1. e4 {[%clk 0:00:00]}  c5 {[%clk 0:00:00]} 2. Nf3 {[%clk 0:00:00]}  g6 {[%clk 0:00:00]} 3. d4 {[%clk 0:00:00]}  cxd4 {[%clk 0:00:00]} 4. Qxd4 {[%clk 0:00:00]}  Nf6 {[%clk 0:00:00]} 5. Nc3 {[%clk 0:00:00]}  Nc6 {[%clk 0:00:00]} 6. Qa4 {[%clk 0:00:00]}  Ng4 {[%clk 0:00:00]} 7. h3 {[%clk 0:00:00]}  Nge5 {[%clk 0:00:00]} 8. Nxe5 {[%clk 0:00:00]}  Nxe5 {[%clk 0:00:00]} 9. f4 {[%clk 0:00:00]}  Nc6 {[%clk 0:00:00]} 10. Be3 {[%clk 0:00:00]}  Bg7 {[%clk 0:00:00]} 11. e5 {[%clk 0:00:00]}  O-O {[%clk 0:00:00]} 12. O-O-O {[%clk 0:00:00]}  d6 {[%clk 0:00:00]} 13. Bc4 {[%clk 0:00:00]}  Bd7 {[%clk 0:00:00]} 14. Qa3 {[%clk 0:00:00]}  dxe5 {[%clk 0:00:00]} 15. Nd5 {[%clk 0:00:00]}  e6 {[%clk 0:00:00]} 16. Nb4 {[%clk 0:00:00]}  exf4 {[%clk 0:00:00]} 17. Nxc6 {[%clk 0:00:00]}  bxc6 {[%clk 0:00:00]} 18. Bxf4 {[%clk 0:00:00]}  Qf6 {[%clk 0:00:00]} 19. Rhf1 {[%clk 0:00:00]}  Rfd8 {[%clk 0:00:00]} 20. Bc7 {[%clk 0:00:00]}  Qg5+ {[%clk 0:00:00]} 21. Kb1 {[%clk 0:00:00]}  Rab8 {[%clk 0:00:00]} 22. Bxb8 {[%clk 0:00:00]}  Rxb8 {[%clk 0:00:00]} 23. Rxd7 {[%clk 0:00:00]}  Bxb2 {[%clk 0:00:00]} 24. Qxb2 {[%clk 0:00:00]}  Rxb2+ {[%clk 0:00:00]} 25. Kxb2 {[%clk 0:00:00]}  Qe5+ {[%clk 0:00:00]} 26. Kb1 {[%clk 0:00:00]}  f5 {[%clk 0:00:00]} 27. Rfd1 {[%clk 0:00:00]}  Qb8+ {[%clk 0:00:00]} 28. Ka1 {[%clk 0:00:00]}  Qe5+ {[%clk 0:00:00]} 29. Kb1 {[%clk 0:00:00]}  Qb8+ {[%clk 0:00:00]} 30. Bb3 {[%clk 0:00:00]}  Qe5 {[%clk 0:00:00]} 31. Rb7 {[%clk 0:00:00]}  Qf6 {[%clk 0:00:00]} 32. Rd6 {[%clk 0:00:00]}  Kf8 {[%clk 0:00:00]} 33. Rxe6 {[%clk 0:00:00]}  Qh4 {[%clk 0:00:00]} 34. Rxc6 {[%clk 0:00:00]}  Qe1+ {[%clk 0:00:00]} 35. Kb2 {[%clk 0:00:00]}  Qe5+ {[%clk 0:00:00]} 36. Ka3 {[%clk 0:00:00]}  Qa5+ {[%clk 0:00:00]} 37. Ba4 {[%clk 0:00:00]}  Qd8 {[%clk 0:00:00]} 38. Rcc7 {[%clk 0:00:00]}  Qd6+ {[%clk 0:00:00]} 39. Kb2 {[%clk 0:00:00]}  Qd4+ {[%clk 0:00:00]} 40. c3 {[%clk 0:00:00]}  Qd2+ {[%clk 0:00:00]} 41. Bc2 {[%clk 0:00:00]}  Qd8 {[%clk 0:00:00]} 42. Rxh7 {[%clk 0:00:00]}  Qf6 {[%clk 0:00:00]} 43. Rbf7+ {[%clk 0:00:00]}  Qxf7 {[%clk 0:00:00]} 44. Rxf7+ {[%clk 0:00:00]}  Kxf7 {[%clk 0:00:00]} 45. Kb3 {[%clk 0:00:00]}  Kf6 {[%clk 0:00:00]} 46. Kc4 {[%clk 0:00:00]}  Ke5 {[%clk 0:00:00]} 47. Kd3 {[%clk 0:00:00]}  Kf4 {[%clk 0:00:00]} 48. Ke2 {[%clk 0:00:00]}  Kg3 {[%clk 0:00:00]} 49. Kf1 {[%clk 0:00:00]}  a5 {[%clk 0:00:00]} 50. c4 {[%clk 0:00:00]}  Kf4 {[%clk 0:00:00]} 51. c5 {[%clk 0:00:00]}  Ke5 {[%clk 0:00:00]} 52. c6 {[%clk 0:00:00]}  Kd6 {[%clk 0:00:00]} 53. Ba4 {[%clk 0:00:00]}  f4 {[%clk 0:00:00]} 54. Kf2 {[%clk 0:00:00]}  Kc7 {[%clk 0:00:00]} 55. Kf3 {[%clk 0:00:00]}  g5 {[%clk 0:00:00]} 56. Kg4 {[%clk 0:00:00]}  Kb6 {[%clk 0:00:00]} 57. Kxg5 {[%clk 0:00:00]}  f3 {[%clk 0:00:00]} 58. gxf3 {[%clk 0:00:00]}  Kc5 {[%clk 0:00:00]} 59. c7 {[%clk 0:00:00]}  Kb4 {[%clk 0:00:00]} 60. c8=Q {[%clk 0:00:00]}  Ka3 {[%clk 0:00:00]} 61. Qb8 {[%clk 0:00:00]}  Kxa4 {[%clk 0:00:00]} 62. Qb3# {[%clk 0:00:00]} 1-0


[Site "https://www.chess.com"]

[Event "Titled Tuesday Blitz August 16 Early 2022"]
[White "Skliarov, Viktor"]
[Black "Padmini, Rout"]
[WhiteFideId "14106736"]
[BlackFideId "5029295"]
[WhiteElo "2257"]
[BlackElo "2181"]
[Result "1/2-1/2"]
[Round "08"]
[TimeControl "180+2"]
[Date "2022.08.18"]
[WhiteClock "0:00:00"]
[BlackClock "0:00:00"]

1. e4 {[%clk 0:00:00]}  c5 {[%clk 0:00:00]} 2. Nf3 {[%clk 0:00:00]}  Nc6 {[%clk 0:00:00]} 3. Bb5 {[%clk 0:00:00]}  g6 {[%clk 0:00:00]} 4. O-O {[%clk 0:00:00]}  Bg7 {[%clk 0:00:00]} 5. Re1 {[%clk 0:00:00]}  Nf6 {[%clk 0:00:00]} 6. e5 {[%clk 0:00:00]}  Nd5 {[%clk 0:00:00]} 7. Nc3 {[%clk 0:00:00]}  Nc7 {[%clk 0:00:00]} 8. Bxc6 {[%clk 0:00:00]}  dxc6 {[%clk 0:00:00]} 9. Ne4 {[%clk 0:00:00]}  b6 {[%clk 0:00:00]} 10. Nf6+ {[%clk 0:00:00]}  Kf8 {[%clk 0:00:00]} 11. Ne4 {[%clk 0:00:00]}  h6 {[%clk 0:00:00]} 12. b3 {[%clk 0:00:00]}  Kg8 {[%clk 0:00:00]} 13. Bb2 {[%clk 0:00:00]}  Kh7 {[%clk 0:00:00]} 14. h3 {[%clk 0:00:00]}  Ne6 {[%clk 0:00:00]} 15. d3 {[%clk 0:00:00]}  Nd4 {[%clk 0:00:00]} 16. Nxd4 {[%clk 0:00:00]}  cxd4 {[%clk 0:00:00]} 17. f4 {[%clk 0:00:00]}  c5 {[%clk 0:00:00]} 18. a4 {[%clk 0:00:00]}  Bb7 {[%clk 0:00:00]} 19. a5 {[%clk 0:00:00]}  Qd5 {[%clk 0:00:00]} 20. Qf3 {[%clk 0:00:00]}  f5 {[%clk 0:00:00]} 21. exf6 {[%clk 0:00:00]}  exf6 {[%clk 0:00:00]} 22. f5 {[%clk 0:00:00]}  gxf5 {[%clk 0:00:00]} 23. Nd2 {[%clk 0:00:00]}  Qd7 {[%clk 0:00:00]} 24. Qf4 {[%clk 0:00:00]}  Bf8 {[%clk 0:00:00]} 25. Rf1 {[%clk 0:00:00]}  Rg8 {[%clk 0:00:00]} 26. Nf3 {[%clk 0:00:00]}  Bd6 {[%clk 0:00:00]} 27. Qh4 {[%clk 0:00:00]}  Qf7 {[%clk 0:00:00]} 28. Bc1 {[%clk 0:00:00]}  Qg6 {[%clk 0:00:00]} 29. Qf2 {[%clk 0:00:00]}  b5 {[%clk 0:00:00]} 30. a6 {[%clk 0:00:00]}  Bc6 {[%clk 0:00:00]} 31. Nh4 {[%clk 0:00:00]}  Qh5 {[%clk 0:00:00]} 32. Bf4 {[%clk 0:00:00]}  Qxh4 {[%clk 0:00:00]} 33. Bxd6 {[%clk 0:00:00]}  Rxg2+ {[%clk 0:00:00]} 34. Qxg2 {[%clk 0:00:00]}  Bxg2 {[%clk 0:00:00]} 35. Kxg2 {[%clk 0:00:00]}  Rg8+ {[%clk 0:00:00]} 36. Kh2 {[%clk 0:00:00]}  Qg5 {[%clk 0:00:00]} 37. Rf2 {[%clk 0:00:00]}  Qe3 {[%clk 0:00:00]} 38. Raf1 {[%clk 0:00:00]}  Rg5 {[%clk 0:00:00]} 39. Bf4 {[%clk 0:00:00]}  Qe6 {[%clk 0:00:00]} 40. Bxg5 {[%clk 0:00:00]}  hxg5 {[%clk 0:00:00]} 41. Rxf5 {[%clk 0:00:00]}  Kg6 {[%clk 0:00:00]} 42. Rxf6+ {[%clk 0:00:00]}  Qxf6 {[%clk 0:00:00]} 43. Rxf6+ {[%clk 0:00:00]}  Kxf6 {[%clk 0:00:00]} 44. Kg3 {[%clk 0:00:00]}  Kf5 {[%clk 0:00:00]} 45. Kf3 {[%clk 0:00:00]}  Ke5 {[%clk 0:00:00]} 46. Kg4 {[%clk 0:00:00]}  Kf6 {[%clk 0:00:00]} 47. Kg3 {[%clk 0:00:00]}  Kf5 {[%clk 0:00:00]} 48. Kf3 {[%clk 0:00:00]}  Ke5 {[%clk 0:00:00]} 49. Kg4 {[%clk 0:00:00]}  Kf6 {[%clk 0:00:00]} 50. Kg3 {[%clk 0:00:00]} 1/2-1/2


[Site "https://www.chess.com"]